fUST/lending_fUST_20251003
["ID","MTS","AMOUNT","RATE_DAILY","PERIOD"]
[388858589,1759429874788,-1101.79,0.00020547,2]
[388858590,1759429874798,-713.95,0.00020547,2]
[388858591,1759429874808,-261.2620467,0.00020547,2]
[388858592,1759429874818,-1193.5,0.00020547,2]
[388858593,1759429874827,-457.16086117,0.00020547,2]
[388858594,1759429874836,-500.0,0.00020547,2]
[388858595,1759429874845,-861.56,0.00020547,2]
[388858596,1759429874857,-500.0,0.00020547,2]
[388858597,1759429874866,-1094.44,0.00020547,2]
[388858598,1759429874875,-500.0,0.00020547,2]
[388858599,1759429874885,-500.0,0.00020547,2]
[388858600,1759429874895,-512.93,0.00020547,2]
[388858601,1759429874904,-500.0,0.00020547,2]
[388858602,1759429874913,-500.0,0.00020547,2]
[388858603,1759429874923,-514.66,0.00020547,2]
[388858604,1759429874933,-500.0,0.00020547,2]
[388858605,1759429874942,-752.46,0.00020547,2]
[388858606,1759429874951,-585.2,0.00020547,2]
[388858607,1759429874960,-502.72,0.00020547,2]
[388858608,1759429874970,-500.0,0.00020547,2]
[388858609,1759429874979,-512.5,0.00020547,2]
[388858610,1759429874988,-500.0,0.00020547,2]
[388858611,1759429874997,-500.0,0.00020547,2]
[388858612,1759429875007,-2668.22,0.00020547,2]
[388858613,1759429875016,-851.75,0.00020547,2]
[388858614,1759429875026,-500.0,0.00020547,2]
[388858615,1759429875036,-705.81,0.00020547,2]
[388858616,1759429875046,-1035.67,0.00020547,2]
[388858617,1759429875055,-384.00963169,0.00020547,2]
[388858618,1759429875065,-838.32,0.00020547,2]
[388858619,1759429875075,-1664.82,0.00020547,2]
[388858620,1759429875084,-500.0,0.00020547,2]
[388858621,1759429875093,-169.21651698,0.00020547,2]
[388858622,1759429875102,-520.78,0.00020547,2]
[388858623,1759429875111,-500.0,0.00020547,2]
[388858624,1759429875120,-952.61,0.00020547,2]
[388858625,1759429875130,-500.0,0.00020547,2]
[388858626,1759429875139,-500.0,0.00020547,2]
[388858627,1759429875148,-591.85,0.00020547,2]
[388858628,1759429875158,-1424.69,0.00020547,2]
[388858629,1759429875167,-500.0,0.00020547,2]
[388858630,1759429875177,-947.23,0.00020547,2]
[388858631,1759429875187,-500.0,0.00020547,2]
[388858632,1759429875196,-402.65010841,0.00020547,2]
[388858633,1759429875205,-1040.22,0.00020547,2]
[388858634,1759429875215,-500.0,0.00020547,2]
[388858635,1759429875224,-500.0,0.00020547,2]
[388858637,1759429875233,-223.76,0.00020547,2]
[388858638,1759429875242,-500.0,0.00020547,2]
[388858639,1759429875251,-500.0,0.00020547,2]
[388858640,1759429875260,-1123.86,0.00020547,2]
[388858641,1759429875269,-500.0,0.00020547,2]
[388858642,1759429875279,-885.13060193,0.00020547,2]
[388858646,1759430198358,-214.76172847,0.00019078,2]
[388858647,1759430198385,-300.0,0.00019177,2]
[388858648,1759430198411,-365.48319122,0.00019177,2]
[388858649,1759430198437,-500.0,0.00019178,2]
[388858650,1759430198461,-500.0,0.00019178,2]
[388858651,1759430198485,-500.0,0.00019178,2]
[388858652,1759430198512,-1492.82,0.00019178,2]
[388858653,1759430198538,-500.0,0.00019178,2]
[388858654,1759430198563,-994.04,0.00019178,2]
[388858655,1759430198593,-500.0,0.00019178,2]
[388858656,1759430198619,-500.0,0.00019178,2]
[388858657,1759430198644,-500.0,0.00019178,2]
[388858658,1759430198676,-500.0,0.00019178,2]
[388858659,1759430198700,-500.0,0.00019178,2]
[388858660,1759430198725,-1003.0,0.00019178,2]
[388858661,1759430198749,-625.85,0.00019178,2]
[388858662,1759430198774,-500.0,0.00019178,2]
[388858663,1759430198798,-500.0,0.00019178,2]
[388858664,1759430198823,-850.68,0.00019178,2]
[388858665,1759430198847,-890.42,0.00019178,2]
[388858666,1759430198873,-500.0,0.00019178,2]
[388858667,1759430198899,-506.56,0.00019178,2]
[388858668,1759430198926,-160.11980709,0.00019178,2]
[388858669,1759430198950,-500.0,0.00019178,2]
[388858670,1759430198974,-500.0,0.00019178,2]
[388858671,1759430198998,-500.0,0.00019178,2]
[388858672,1759430199024,-500.0,0.00019178,2]
[388858673,1759430199050,-895.12,0.00019178,2]
[388858674,1759430199076,-500.0,0.00019178,2]
[388858675,1759430199101,-500.0,0.00019178,2]
[388858676,1759430199125,-625.66,0.00019178,2]
[388858677,1759430199149,-993.11,0.00019178,2]
[388858678,1759430199176,-3245.29,0.00019178,2]
[388858679,1759430199201,-500.0,0.00019178,2]
[388858680,1759430199226,-464.15451755,0.00019178,2]
[388858681,1759430199251,-500.0,0.00019178,2]
[388858682,1759430199274,-500.0,0.00019178,2]
[388858683,1759430199300,-1211.15,0.00019178,2]
[388858684,1759430199324,-622.36,0.00019178,2]
[388858685,1759430199348,-500.0,0.00019178,2]
[388858686,1759430199372,-500.0,0.00019178,2]
[388858687,1759430199396,-500.0,0.00019178,2]
[388858688,1759430199421,-1091.78,0.00019178,2]
[388858689,1759430199444,-833.09,0.00019178,2]
[388858690,1759430199467,-1221.63,0.00019178,2]
[388858691,1759430199492,-887.84,0.00019178,2]
[388858692,1759430199517,-500.0,0.00019178,2]
[388858693,1759430199542,-536.56,0.00019178,2]
[388858694,1759430199565,-1187.3,0.00019178,2]
[388858695,1759430199590,-1417.77,0.00019178,2]
[388858696,1759430199616,-1128.07,0.00019178,2]
[388858697,1759430199644,-987.28,0.00019178,2]
[388858698,1759430199668,-628.74,0.00019178,2]
[388858699,1759430199692,-500.0,0.00019178,2]
[388858700,1759430199717,-500.0,0.00019178,2]
[388858701,1759430199742,-603.74,0.00019178,2]
[388858702,1759430199768,-2477.68,0.00019178,2]
[388858703,1759430199794,-500.0,0.00019178,2]
[388858704,1759430199820,-3241.45,0.00019178,2]
[388858705,1759430200009,-246.68850099,0.00019178,2]
[388858706,1759430200037,-1096.42,0.00019178,2]
[388858707,1759430200061,-440.775544,0.00019178,2]
[388858708,1759430200086,-295.17978856,0.00019178,2]
[388858709,1759430200112,-2247.23,0.00019178,2]
[388858710,1759430200136,-3556.14,0.00019178,2]
[388858711,1759430200160,-500.0,0.00019178,2]
[388858712,1759430200184,-871.86,0.00019178,2]
[388858713,1759430200208,-500.0,0.00019178,2]
[388858714,1759430200233,-500.0,0.00019178,2]
[388858715,1759430200257,-737.53,0.00019178,2]
[388858716,1759430200281,-1664.31,0.00019178,2]
[388858717,1759430200305,-500.0,0.00019178,2]
[388858718,1759430200330,-530.32,0.00019178,2]
[388858719,1759430200355,-500.0,0.00019178,2]
[388858720,1759430200379,-796.85,0.00019178,2]
[388858721,1759430200403,-548.35,0.00019178,2]
[388858722,1759430200428,-500.0,0.00019178,2]
[388858723,1759430200452,-1075.31,0.00019178,2]
[388858724,1759430200476,-500.0,0.00019178,2]
[388858725,1759430200502,-500.0,0.00019178,2]
[388858726,1759430200527,-1227.73,0.00019178,2]
[388858727,1759430200552,-500.0,0.00019178,2]
[388858728,1759430200577,-544.5,0.00019178,2]
[388858729,1759430200603,-500.0,0.00019178,2]
[388858730,1759430200627,-500.0,0.00019178,2]
[388858731,1759430200651,-754.98,0.00019178,2]
[388858732,1759430200675,-818.1,0.00019178,2]
[388858733,1759430200699,-500.0,0.00019178,2]
[388858734,1759430200722,-933.32,0.00019178,2]
[388858735,1759430200746,-500.0,0.00019178,2]
[388858736,1759430200770,-1850.22,0.00019178,2]
[388858737,1759430200794,-1264.66,0.00019178,2]
[388858738,1759430200818,-638.82,0.00019178,2]
[388858739,1759430200842,-500.0,0.00019178,2]
[388858740,1759430200865,-500.0,0.00019178,2]
[388858741,1759430200890,-500.0,0.00019178,2]
[388858742,1759430200913,-500.0,0.00019178,2]
[388858743,1759430200940,-500.0,0.00019178,2]
[388858744,1759430200965,-500.0,0.00019178,2]
[388858745,1759430200990,-1045.03,0.00019178,2]
[388858746,1759430201017,-500.0,0.00019178,2]
[388858747,1759430201040,-500.0,0.00019178,2]
[388858748,1759430201066,-1918.08,0.00019178,2]
[388858749,1759430201090,-500.0,0.00019178,2]
[388858750,1759430201114,-500.0,0.00019178,2]
[388858751,1759430201138,-500.0,0.00019178,2]
[388858752,1759430201161,-593.4,0.00019178,2]
[388858753,1759430201186,-500.0,0.00019178,2]
[388858754,1759430201210,-669.95,0.00019178,2]
[388858755,1759430201234,-500.0,0.00019178,2]
[388858756,1759430201257,-500.0,0.00019178,2]
[388858757,1759430201281,-1871.27,0.00019178,2]
[388858758,1759430201307,-5679.75,0.00019178,2]
[388858759,1759430201331,-234.26533354,0.00019178,2]
[388858760,1759430201355,-500.0,0.00019178,2]
[388858761,1759430201379,-500.0,0.00019178,2]
[388858762,1759430201403,-500.0,0.00019178,2]
[388858763,1759430201427,-2457.16,0.00019178,2]
[388858764,1759430201451,-500.0,0.00019178,2]
[388858765,1759430201476,-842.89,0.00019178,2]
[388858766,1759430201501,-2090.75,0.00019178,2]
[388858767,1759430201527,-1846.59,0.00019178,2]
[388858768,1759430201553,-500.0,0.00019178,2]
[388858769,1759430201579,-500.0,0.00019178,2]
[388858770,1759430201604,-500.0,0.00019178,2]
[388858771,1759430201629,-777.81,0.00019178,2]
[388858772,1759430201660,-9450.95,0.00019178,2]
[388858773,1759430201686,-500.0,0.00019178,2]
[388858774,1759430201715,-3888.25,0.00019178,2]
[388858775,1759430201741,-1478.58,0.00019178,2]
[388858776,1759430201768,-500.0,0.00019178,2]
[388858777,1759430201795,-500.0,0.00019178,2]
[388858778,1759430201822,-500.0,0.00019178,2]
[388858779,1759430201848,-500.0,0.00019178,2]
[388858780,1759430201874,-590.71,0.00019178,2]
[388858781,1759430201900,-500.0,0.00019178,2]
[388858782,1759430201932,-500.0,0.00019178,2]
[388858783,1759430201958,-500.0,0.00019178,2]
[388858784,1759430201985,-508.36,0.00019178,2]
[388858785,1759430202020,-1467.6,0.00019178,2]
[388858786,1759430202064,-500.0,0.00019178,2]
[388858787,1759430202091,-5528.62,0.00019178,2]
[388858788,1759430202118,-500.0,0.00019178,2]
[388858789,1759430202145,-500.0,0.00019178,2]
[388858790,1759430202172,-500.0,0.00019178,2]
[388858791,1759430202196,-500.0,0.00019178,2]
[388858792,1759430202220,-500.0,0.00019178,2]
[388858793,1759430202244,-500.0,0.00019178,2]
[388858794,1759430202269,-1228.37,0.00019178,2]
[388858795,1759430202293,-648.09,0.00019178,2]
[388858796,1759430202318,-500.0,0.00019178,2]
[388858797,1759430202344,-2339.89,0.00019178,2]
[388858798,1759430202369,-500.0,0.00019178,2]
[388858799,1759430202542,-500.0,0.00019178,2]
[388858800,1759430202568,-500.0,0.00019178,2]
[388858801,1759430202595,-8129.57280934,0.00019178,2]
[388858802,1759430202620,-500.0,0.00019178,2]
[388858803,1759430202646,-184.6984545,0.00019352,2]
[388858804,1759430202670,-490.73,0.00019436,3]
[388858805,1759430202697,-500.0,0.00019446,2]
[388858806,1759430202721,-500.0,0.00019446,2]
[388858807,1759430202746,-500.0,0.00019446,2]
[388858808,1759430202769,-500.0,0.00019446,2]
[388858809,1759430202793,-656.16,0.00019446,2]
[388858810,1759430202820,-3133.55,0.00019446,2]
[388858811,1759430202844,-1037.0,0.00019446,2]
[388858812,1759430202868,-2118.08,0.00019446,2]
[388858813,1759430202892,-500.0,0.00019446,2]
[388858814,1759430202918,-836.7,0.00019446,2]
[388858815,1759430202946,-899.91,0.00019446,2]
[388858816,1759430202971,-826.35,0.00019446,2]
[388858817,1759430202995,-820.83,0.00019446,2]
[388858818,1759430203021,-500.0,0.00019446,2]
[388858819,1759430203046,-2288.84,0.00019446,2]
[388858820,1759430203069,-500.0,0.00019446,2]
[388858821,1759430203093,-1445.28,0.00019446,2]
[388858822,1759430203117,-1248.62,0.00019446,2]
[388858823,1759430203141,-500.0,0.00019446,2]
[388858824,1759430203165,-807.0,0.00019446,2]
[388858825,1759430203192,-1068.51,0.00019446,2]
[388858826,1759430203218,-552.13,0.00019446,2]
[388858827,1759430203244,-500.0,0.00019446,2]
[388858828,1759430203270,-1635.97,0.00019446,2]
[388858829,1759430203296,-500.0,0.00019446,2]
[388858830,1759430203322,-500.0,0.00019446,2]
[388858831,1759430203346,-634.92182305,0.00019451,2]
[388858832,1759430203371,-500.0,0.00019451,2]
[388858833,1759430203394,-500.0,0.00019451,2]
[388858834,1759430203418,-500.0,0.00019451,2]
[388858835,1759430203442,-500.0,0.00019451,2]
[388858836,1759430203466,-500.0,0.00019451,2]
[388858837,1759430203489,-500.0,0.00019451,2]
[388858838,1759430203513,-500.0,0.00019451,2]
[388858839,1759430203536,-721.34,0.00019451,2]
[388858840,1759430203563,-500.0,0.00019451,2]
[388858841,1759430203593,-2717.03,0.00019451,2]
[388858842,1759430203625,-627.33,0.00019451,2]
[388858843,1759430203653,-592.49,0.00019451,2]
[388858844,1759430203677,-623.21,0.00019451,2]
[388858845,1759430203701,-500.0,0.00019451,2]
[388858846,1759430203725,-500.0,0.00019451,2]
[388858847,1759430203749,-500.0,0.00019451,2]
[388858848,1759430203774,-172.77781041,0.00019451,2]
[388858849,1759430203798,-500.0,0.00019451,2]
[388858850,1759430203822,-500.0,0.00019451,2]
[388858851,1759430203845,-500.0,0.00019451,2]
[388858852,1759430203868,-500.0,0.00019451,2]
[388858853,1759430203892,-284.72789605,0.00019451,2]
[388858854,1759430203920,-500.0,0.00019451,2]
[388858855,1759430203946,-653.45,0.00019451,2]
[388858856,1759430203969,-919.91,0.00019451,2]
[388858857,1759430203996,-500.0,0.00019451,2]
[388858858,1759430204021,-500.0,0.00019451,2]
[388858859,1759430204044,-500.0,0.00019451,2]
[388858860,1759430204069,-1820.11,0.00019451,2]
[388858861,1759430204092,-500.0,0.00019451,2]
[388858862,1759430204116,-500.0,0.00019451,2]
[388858863,1759430204139,-1026.85,0.00019451,2]
[388858864,1759430204163,-500.0,0.00019451,2]
[388858865,1759430204192,-3867.53,0.00019451,2]
[388858866,1759430204217,-500.0,0.00019451,2]
[388858867,1759430204241,-500.0,0.00019451,2]
[388858868,1759430204266,-207.71466552,0.00019451,2]
[388858869,1759430204290,-500.0,0.00019451,2]
[388858870,1759430204315,-500.0,0.00019451,2]
[388858871,1759430204340,-1104.27,0.00019451,2]
[388858872,1759430204367,-1174.44,0.00019451,2]
[388858873,1759430204391,-500.0,0.00019451,2]
[388858874,1759430204417,-604.09,0.00019451,2]
[388858875,1759430204444,-500.0,0.00019451,2]
[388858876,1759430204469,-831.07,0.00019451,2]
[388858877,1759430204494,-500.0,0.00019451,2]
[388858878,1759430204518,-450.2984258,0.00019451,2]
[388858879,1759430204543,-1955.15,0.00019451,2]
[388858880,1759430204567,-500.0,0.00019451,2]
[388858881,1759430204592,-500.0,0.00019451,2]
[388858882,1759430204615,-537.49,0.00019451,2]
[388858883,1759430204640,-1183.79,0.00019451,2]
[388858884,1759430204665,-193.20702182,0.00019451,2]
[388858885,1759430204690,-521.61,0.00019451,2]
[388858886,1759430204714,-500.0,0.00019451,2]
[388858887,1759430204739,-500.0,0.00019451,2]
[388858888,1759430204763,-500.0,0.00019451,2]
[388858889,1759430204786,-500.0,0.00019452,2]
[388858890,1759430204809,-500.0,0.00019452,2]
[388858891,1759430204833,-500.0,0.00019452,2]
[388858892,1759430204857,-1492.82,0.00019452,2]
[388858893,1759430204881,-500.0,0.00019452,2]
[388858894,1759430205056,-994.04,0.00019452,2]
[388858895,1759430205080,-500.0,0.00019452,2]
[388858896,1759430205104,-500.0,0.00019452,2]
[388858897,1759430205129,-500.0,0.00019452,2]
[388858898,1759430205154,-500.0,0.00019452,2]
[388858899,1759430205177,-500.0,0.00019452,2]
[388858900,1759430205201,-1003.0,0.00019452,2]
[388858901,1759430205225,-625.85,0.00019452,2]
[388858902,1759430205249,-500.0,0.00019452,2]
[388858903,1759430205273,-500.0,0.00019452,2]
[388858904,1759430205298,-850.68,0.00019452,2]
[388858905,1759430205321,-890.42,0.00019452,2]
[388858906,1759430205344,-500.0,0.00019452,2]
[388858907,1759430205368,-506.56,0.00019452,2]
[388858908,1759430205393,-500.0,0.00019452,2]
[388858909,1759430205423,-500.0,0.00019452,2]
[388858910,1759430205447,-500.0,0.00019452,2]
[388858911,1759430205471,-500.0,0.00019452,2]
[388858912,1759430205499,-895.12,0.00019452,2]
[388858913,1759430205524,-500.0,0.00019452,2]
[388858914,1759430205549,-500.0,0.00019452,2]
[388858915,1759430205573,-625.66,0.00019452,2]
[388858916,1759430205597,-993.11,0.00019452,2]
[388858917,1759430205623,-3245.29,0.00019452,2]
[388858918,1759430205647,-500.0,0.00019452,2]
[388858919,1759430205671,-500.0,0.00019452,2]
[388858920,1759430205695,-500.0,0.00019452,2]
[388858921,1759430205719,-1211.15,0.00019452,2]
[388858922,1759430205743,-622.36,0.00019452,2]
[388858923,1759430205768,-500.0,0.00019452,2]
[388858924,1759430205792,-500.0,0.00019452,2]
[388858925,1759430205816,-500.0,0.00019452,2]
[388858926,1759430205840,-1091.78,0.00019452,2]
[388858927,1759430205864,-833.09,0.00019452,2]
[388858928,1759430205887,-1221.63,0.00019452,2]
[388858929,1759430205912,-887.84,0.00019452,2]
[388858930,1759430205940,-363.89888263,0.00019452,2]
[388858931,1759430205964,-536.56,0.00019452,2]
[388858932,1759430205989,-1187.3,0.00019452,2]
[388858933,1759430206016,-1417.77,0.00019452,2]
[388858934,1759430206041,-1128.07,0.00019452,2]
[388858935,1759430206065,-987.28,0.00019452,2]
[388858936,1759430206088,-628.74,0.00019452,2]
[388858937,1759430206114,-242.57345761,0.00019452,2]
[388858938,1759430206138,-500.0,0.00019452,2]
[388858939,1759430206162,-603.74,0.00019452,2]
[388858940,1759430206186,-2477.68,0.00019452,2]
[388858941,1759430206210,-500.0,0.00019452,2]
[388858942,1759430206234,-3241.45,0.00019452,2]
[388858943,1759430206257,-1096.42,0.00019452,2]
[388858944,1759430206282,-2247.23,0.00019452,2]
[388858945,1759430206308,-3556.14,0.00019452,2]
[388858946,1759430206331,-500.0,0.00019452,2]
[388858947,1759430206354,-871.86,0.00019452,2]
[388858948,1759430206378,-500.0,0.00019452,2]
[388858949,1759430206401,-500.0,0.00019452,2]
[388858950,1759430206425,-737.53,0.00019452,2]
[388858951,1759430206450,-1664.31,0.00019452,2]
[388858952,1759430206475,-500.0,0.00019452,2]
[388858953,1759430206500,-500.0,0.00019452,2]
[388858954,1759430206526,-530.32,0.00019452,2]
[388858955,1759430206555,-796.85,0.00019452,2]
[388858956,1759430206579,-548.35,0.00019452,2]
[388858957,1759430206603,-500.0,0.00019452,2]
[388858958,1759430206630,-1075.31,0.00019452,2]
[388858959,1759430206655,-500.0,0.00019452,2]
[388858960,1759430206679,-500.0,0.00019452,2]
[388858961,1759430206704,-500.0,0.00019452,2]
[388858962,1759430206729,-544.5,0.00019452,2]
[388858963,1759430206756,-500.0,0.00019452,2]
[388858964,1759430206782,-500.0,0.00019452,2]
[388858965,1759430206806,-754.98,0.00019452,2]
[388858966,1759430206830,-818.1,0.00019452,2]
[388858967,1759430206854,-500.0,0.00019452,2]
[388858968,1759430206879,-500.0,0.00019452,2]
[388858969,1759430206903,-933.32,0.00019452,2]
[388858970,1759430206930,-1850.22,0.00019452,2]
[388858971,1759430206954,-1264.66,0.00019452,2]
[388858972,1759430206979,-638.82,0.00019452,2]
[388858973,1759430207003,-500.0,0.00019452,2]
[388858974,1759430207028,-500.0,0.00019452,2]
[388858975,1759430207062,-500.0,0.00019452,2]
[388858976,1759430207086,-500.0,0.00019452,2]
[388858977,1759430207111,-500.0,0.00019452,2]
[388858978,1759430207135,-1045.03,0.00019452,2]
[388858979,1759430207158,-500.0,0.00019452,2]
[388858980,1759430207182,-500.0,0.00019452,2]
[388858981,1759430207206,-527.46488488,0.00019452,2]
[388858982,1759430207233,-1918.08,0.00019452,2]
[388858983,1759430207257,-500.0,0.00019452,2]
[388858984,1759430207281,-188.78798777,0.00019452,2]
[388858985,1759430207304,-500.0,0.00019452,2]
[388858986,1759430207336,-593.4,0.00019452,2]
[388858987,1759430207361,-620.2962967,0.00019452,2]
[388858988,1759430207530,-669.95,0.00019452,2]
[388858989,1759430207556,-500.0,0.00019452,2]
[388858990,1759430207580,-500.0,0.00019452,2]
[388858991,1759430207605,-1871.27,0.00019452,2]
[388858992,1759430207630,-5679.75,0.00019452,2]
[388858993,1759430207655,-215.96035075,0.00019452,2]
[388858994,1759430207679,-500.0,0.00019452,2]
[388858995,1759430207703,-366.54990168,0.00019452,2]
[388858996,1759430207728,-2457.16,0.00019452,2]
[388858997,1759430207752,-276.35883592,0.00019452,2]
[388858998,1759430207777,-842.89,0.00019452,2]
[388858999,1759430207801,-2090.75,0.00019452,2]
[388859000,1759430207828,-1846.59,0.00019452,2]
[388859001,1759430207854,-500.0,0.00019452,2]
[388859002,1759430207880,-500.0,0.00019452,2]
[388859003,1759430207904,-500.0,0.00019452,2]
[388859004,1759430207931,-777.81,0.00019452,2]
[388859005,1759430207957,-9450.95,0.00019452,2]
[388859006,1759430207982,-500.0,0.00019452,2]
[388859007,1759430208007,-3888.25,0.00019452,2]
[388859008,1759430208031,-1478.58,0.00019452,2]
[388859009,1759430208056,-500.0,0.00019452,2]
[388859010,1759430208080,-500.0,0.00019452,2]
[388859011,1759430208104,-500.0,0.00019452,2]
[388859012,1759430208128,-500.0,0.00019452,2]
[388859013,1759430208152,-590.71,0.00019452,2]
[388859014,1759430208177,-500.0,0.00019452,2]
[388859015,1759430208200,-500.0,0.00019452,2]
[388859016,1759430208224,-500.0,0.00019452,2]
[388859017,1759430208247,-508.36,0.00019452,2]
[388859018,1759430208271,-1467.6,0.00019452,2]
[388859019,1759430208295,-500.0,0.00019452,2]
[388859020,1759430208321,-5528.62,0.00019452,2]
[388859021,1759430208344,-500.0,0.00019452,2]
[388859022,1759430208369,-500.0,0.00019452,2]
[388859023,1759430208392,-500.0,0.00019452,2]
[388859024,1759430208416,-500.0,0.00019452,2]
[388859025,1759430208440,-500.0,0.00019452,2]
[388859026,1759430208464,-500.0,0.00019452,2]
[388859027,1759430208489,-1228.37,0.00019452,2]
[388859028,1759430208513,-648.09,0.00019452,2]
[388859029,1759430208537,-500.0,0.00019452,2]
[388859030,1759430208562,-2339.89,0.00019452,2]
[388859031,1759430208587,-500.0,0.00019452,2]
[388859032,1759430208614,-500.0,0.00019452,2]
[388859033,1759430208638,-500.0,0.00019452,2]
[388859034,1759430208666,-500.0,0.0001972,2]
[388859035,1759430208692,-500.0,0.0001972,2]
[388859036,1759430208715,-500.0,0.0001972,2]
[388859037,1759430208742,-500.0,0.0001972,2]
[388859038,1759430208766,-656.16,0.0001972,2]
[388859039,1759430208790,-3133.55,0.0001972,2]
[388859040,1759430208815,-1037.0,0.0001972,2]
[388859041,1759430208840,-2118.08,0.0001972,2]
[388859042,1759430208863,-500.0,0.0001972,2]
[388859043,1759430208891,-836.7,0.0001972,2]
[388859044,1759430208917,-899.91,0.0001972,2]
[388859045,1759430208944,-826.35,0.0001972,2]
[388859046,1759430208967,-820.83,0.0001972,2]
[388859047,1759430208989,-500.0,0.0001972,2]
[388859048,1759430209013,-2288.84,0.0001972,2]
[388859049,1759430209037,-500.0,0.0001972,2]
[388859050,1759430209063,-1445.28,0.0001972,2]
[388859051,1759430209087,-1248.62,0.0001972,2]
[388859052,1759430209113,-500.0,0.0001972,2]
[388859053,1759430209138,-807.0,0.0001972,2]
[388859054,1759430209162,-1068.51,0.0001972,2]
[388859055,1759430209186,-552.13,0.0001972,2]
[388859056,1759430209210,-500.0,0.0001972,2]
[388859057,1759430209236,-1635.97,0.0001972,2]
[388859058,1759430209259,-500.0,0.0001972,2]
[388859059,1759430209284,-500.0,0.00019725,2]
[388859060,1759430209308,-500.0,0.00019725,2]
[388859061,1759430209332,-500.0,0.00019725,2]
[388859062,1759430209358,-500.0,0.00019725,2]
[388859063,1759430209382,-500.0,0.00019725,2]
[388859064,1759430209407,-500.0,0.00019725,2]
[388859065,1759430209431,-500.0,0.00019725,2]
[388859066,1759430209455,-721.34,0.00019725,2]
[388859067,1759430209480,-500.0,0.00019725,2]
[388859068,1759430209505,-2717.03,0.00019725,2]
[388859069,1759430209530,-627.33,0.00019725,2]
[388859070,1759430209554,-592.49,0.00019725,2]
[388859071,1759430209578,-623.21,0.00019725,2]
[388859072,1759430209602,-500.0,0.00019725,2]
[388859073,1759430209627,-500.0,0.00019725,2]
[388859074,1759430209652,-500.0,0.00019725,2]
[388859075,1759430209676,-500.0,0.00019725,2]
[388859076,1759430209702,-500.0,0.00019725,2]
[388859077,1759430209727,-500.0,0.00019725,2]
[388859078,1759430209752,-500.0,0.00019725,2]
[388859079,1759430209786,-500.0,0.00019725,2]
[388859080,1759430209812,-653.45,0.00019725,2]
[388859081,1759430209977,-919.91,0.00019725,2]
[388859082,1759430210001,-500.0,0.00019725,2]
[388859083,1759430210025,-500.0,0.00019725,2]
[388859084,1759430210050,-500.0,0.00019725,2]
[388859085,1759430210077,-1820.11,0.00019725,2]
[388859086,1759430210103,-500.0,0.00019725,2]
[388859087,1759430210128,-500.0,0.00019725,2]
[388859088,1759430210153,-1026.85,0.00019725,2]
[388859089,1759430210177,-500.0,0.00019725,2]
[388859090,1759430210202,-3867.53,0.00019725,2]
[388859091,1759430210226,-500.0,0.00019725,2]
[388859092,1759430210250,-500.0,0.00019725,2]